bitfinex-derivatives/quotes_BTCF0:USTF0_20250313
["timestamp","ask_amount","ask_price","bid_price","bid_amount"]
[1741885532467,0.0628915,80801.0,80800.0,0.15029151]
[1741885532674,0.0628915,80801.0,80800.0,0.02650691]
[1741885532864,0.0628915,80801.0,80800.0,0.15029151]
[1741885533362,0.0628915,80801.0,80800.0,0.13645681]
[1741885533564,0.001,80801.0,80800.0,0.13645681]
[1741885533963,0.001,80801.0,80800.0,0.1237846]
[1741885534164,0.0685,80826.0,80811.0,0.1237678]
[1741885534467,0.1237406,80829.0,80828.0,0.1237417]
[1741885534667,0.14684,80838.0,80815.0,0.0672]
[1741885534873,0.061878,80821.0,80820.0,0.061874]
[1741885535073,0.1237555,80819.0,80818.0,0.0618778]
[1741885535277,0.1237662,80813.0,80812.0,0.1237657]
[1741885535472,0.1237662,80813.0,80812.0,0.13636245]
[1741885535775,0.1237662,80813.0,80812.0,0.1237657]
[1741885535967,0.1237662,80812.0,80811.0,0.270606]
[1741885536169,0.1237678,80811.0,80810.0,0.00018561]
[1741885537674,0.0618991,80792.0,80780.0,0.3635221]
[1741885537870,0.0618991,80792.0,80791.0,0.1237984]
[1741885538180,0.0618991,80792.0,80791.0,0.13615072]
[1741885538670,0.06305339,80792.0,80791.0,0.27675072]
[1741885539273,0.1237999,80790.0,80789.0,0.00185661]
[1741885539475,0.1238091,80784.0,80783.0,0.00018561]
[1741885539675,0.1228244,80774.0,80773.0,0.32267369]
[1741885539870,0.1238321,80769.0,80756.0,0.00016078]
[1741885540070,0.1228321,80769.0,80756.0,0.00016078]
[1741885540284,0.1238459,80760.0,80756.0,0.00016078]
[1741885540579,0.2703659,80760.0,80756.0,0.00016078]
[1741885540883,0.27193408,80760.0,80756.0,0.00016078]
[1741885541881,0.1238505,80757.0,80756.0,0.00016078]
[1741885542275,0.1915505,80757.0,80756.0,0.00016078]
[1741885542882,0.19311868,80757.0,80756.0,0.00016078]
[1741885545376,0.34483868,80757.0,80756.0,0.00016078]
[1741885546273,0.34383868,80757.0,80756.0,0.00016078]
[1741885546977,0.34483868,80757.0,80756.0,0.00016078]
[1741885548370,0.19711868,80757.0,80756.0,0.00016078]
[1741885549486,0.19611868,80757.0,80756.0,0.00016078]
[1741885550678,0.19611868,80757.0,80756.0,0.12401278]
[1741885551085,0.19611868,80757.0,80756.0,0.00016078]
[1741885551683,0.19711868,80757.0,80756.0,0.00016078]
[1741885552278,0.19711868,80757.0,80756.0,0.12401278]
[1741885552479,0.12941868,80757.0,80756.0,0.12401278]
[1741885552679,0.12941868,80757.0,80756.0,0.13786078]
[1741885552882,0.12941868,80757.0,80756.0,0.00016078]
[1741885554778,0.12541868,80757.0,80756.0,0.00016078]
[1741885555692,0.12941868,80757.0,80756.0,0.00016078]
[1741885556987,0.19611868,80757.0,80756.0,0.00016078]
[1741885557390,0.1238582,80752.0,80751.0,0.00018573]
[1741885557589,0.2695782,80752.0,80751.0,3e-08]
[1741885557987,0.27114638,80752.0,80751.0,3e-08]
[1741885558181,0.42298434,80752.0,80751.0,3e-08]
[1741885559394,0.42498434,80752.0,80751.0,3e-08]
[1741885559597,0.42484169,80752.0,80751.0,3e-08]
[1741885560284,0.42470434,80752.0,80751.0,3e-08]
[1741885560592,0.42484021,80752.0,80751.0,3e-08]
[1741885561997,0.42484021,80752.0,80751.0,0.12385973]
[1741885562382,0.42484021,80752.0,80751.0,0.13990003]
[1741885563099,0.42470434,80752.0,80751.0,3e-08]
[1741885563696,0.1239027,80723.0,80722.0,0.00185813]
[1741885563994,0.12561687,80723.0,80722.0,0.22168915]
[1741885564387,0.00171417,80723.0,80722.0,0.22168915]
[1741885564594,0.12561687,80723.0,80722.0,0.22168915]
[1741885565087,0.13926849,80723.0,80722.0,0.29598915]
[1741885565287,0.13926849,80723.0,80722.0,0.31618864]
[1741885565696,0.13826849,80723.0,80722.0,0.31118864]
[1741885565999,0.13826849,80723.0,80722.0,0.29098915]
[1741885566190,0.13826849,80723.0,80722.0,0.3109588]
[1741885566391,0.00171417,80723.0,80722.0,0.3109588]
[1741885567498,0.12561687,80723.0,80722.0,0.3109588]
[1741885567693,0.12561687,80723.0,80722.0,0.18519647]
[1741885567896,0.12561687,80723.0,80722.0,0.09792682]
[1741885568097,0.12561687,80723.0,80722.0,0.0841738]
[1741885568601,0.26701687,80723.0,80722.0,0.0831738]
[1741885569202,0.26701687,80723.0,80722.0,0.10313056]
[1741885569604,0.12561687,80723.0,80722.0,0.11696679]
[1741885569796,0.12561687,80723.0,80722.0,0.09601003]
[1741885570100,0.12561687,80723.0,80722.0,0.23986394]
[1741885570306,0.00171417,80723.0,80722.0,0.23986394]
[1741885570495,0.00171417,80723.0,80722.0,0.30996394]
[1741885571601,0.12561687,80723.0,80722.0,0.31063532]
[1741885571792,0.12561687,80723.0,80722.0,0.31263532]
[1741885572103,0.13830273,80723.0,80722.0,0.18873112]
[1741885572907,0.12561687,80723.0,80722.0,0.31463532]
[1741885573090,0.00171417,80723.0,80722.0,0.31463532]
[1741885573605,0.00171417,80723.0,80722.0,0.31163532]
[1741885574102,0.12561687,80723.0,80722.0,0.31163532]
[1741885574401,0.12561687,80723.0,80722.0,0.18673112]
[1741885576606,0.0619584,80714.0,80703.0,0.29418194]
[1741885576800,0.1239303,80705.0,80704.0,0.068]
[1741885576994,0.1239303,80705.0,80703.0,0.29418194]
[1741885576995,0.00156818,80705.0,80703.0,0.29418194]
[1741885577198,0.2610319,80704.0,80703.0,0.29418194]
[1741885577500,0.23097043,80704.0,80703.0,0.41811534]
[1741885577803,0.1239319,80704.0,80703.0,0.41811534]
[1741885578102,0.12550008,80704.0,80703.0,0.41811534]
[1741885578306,0.12550008,80704.0,80701.0,0.2025681]
[1741885578307,0.1239349,80703.0,80702.0,0.1239343]
[1741885578711,0.1239349,80703.0,80702.0,0.2645349]
[1741885579006,0.1239349,80703.0,80702.0,0.1406]
[1741885579316,0.26120308,80703.0,80702.0,0.1406]
[1741885579503,0.26120308,80703.0,80702.0,0.2645349]
[1741885579504,0.12450308,80703.0,80702.0,0.2645349]
[1741885579903,0.00156818,80703.0,80702.0,0.2645349]
[1741885580104,0.1239334,80703.0,80702.0,0.2655349]
[1741885580810,0.1239334,80703.0,80702.0,0.1416]
[1741885581104,0.1239334,80703.0,80702.0,0.1436]
[1741885581706,0.00010392,80705.0,80704.0,0.1239319]
[1741885581910,0.12403422,80705.0,80704.0,0.1239319]
[1741885583206,0.00010392,80705.0,80704.0,0.1239319]
[1741885583513,0.00010392,80705.0,80704.0,0.1249319]
[1741885583718,0.00010392,80705.0,80704.0,0.1259319]
[1741885584011,0.12403422,80705.0,80704.0,0.1259319]
[1741885584407,0.13665994,80705.0,80704.0,0.1259319]
[1741885584604,0.12403422,80705.0,80704.0,0.1259319]
[1741885584803,0.12403422,80705.0,80704.0,0.002]
[1741885586818,0.12403422,80705.0,80704.0,0.1401]
[1741885587209,0.19083422,80705.0,80704.0,0.1401]
[1741885587410,0.19083422,80705.0,80704.0,0.2640319]
[1741885587702,0.00010392,80705.0,80704.0,0.2640319]
[1741885588312,0.12403422,80705.0,80704.0,0.1401]
[1741885588513,0.12403422,80705.0,80704.0,0.15243063]
[1741885588712,0.12403422,80705.0,80704.0,0.27636253]
[1741885588909,0.00010392,80705.0,80704.0,0.27636253]
[1741885589218,0.00010392,80705.0,80704.0,0.29624686]
[1741885589410,0.12403422,80705.0,80704.0,0.29624686]
[1741885589614,0.00010392,80705.0,80704.0,0.29624686]
[1741885590212,0.00010392,80705.0,80704.0,0.30881003]
[1741885590614,0.00010392,80705.0,80704.0,0.45385003]
[1741885591217,0.00010392,80705.0,80704.0,0.4339657]
[1741885591719,4e-08,80712.0,80711.0,0.1239211]
[1741885591916,0.1094765,80717.0,80716.0,0.1239134]
[1741885592113,0.1094765,80717.0,80716.0,0.28140403]
[1741885592704,0.10955404,80717.0,80716.0,0.41840403]
[1741885592905,0.10955404,80717.0,80716.0,0.41837651]
[1741885593209,0.23346594,80717.0,80716.0,0.29430311]
[1741885593415,0.23346594,80717.0,80716.0,0.14930311]
[1741885593619,0.12398944,80717.0,80716.0,0.14930311]
[1741885594221,0.12598944,80717.0,80716.0,0.14930311]
[1741885594415,0.12598944,80717.0,80716.0,0.01230311]
[1741885594806,0.13859045,80717.0,80716.0,0.01230311]
[1741885595419,0.14159045,80717.0,80716.0,0.01230311]
[1741885596416,0.13959045,80717.0,80716.0,0.01230311]
[1741885596612,0.14159045,80717.0,80716.0,0.01230311]
[1741885596918,0.00507754,80717.0,80716.0,0.13621651]
[1741885597111,0.00507754,80717.0,80716.0,0.15605044]
[1741885597316,0.00507754,80717.0,80716.0,0.29495044]
[1741885597517,0.12898944,80717.0,80716.0,0.29495044]
[1741885597912,0.12998944,80717.0,80716.0,0.29495044]
[1741885598823,0.12598944,80717.0,80716.0,0.29495044]
[1741885599327,0.26808944,80717.0,80716.0,0.01230311]
[1741885599732,0.30634708,80717.0,80716.0,0.01230311]
[1741885600217,0.1239349,80702.0,80701.0,0.123935]
[1741885600419,0.1239349,80702.0,80701.0,0.15636407]
[1741885600624,0.1239349,80702.0,80701.0,0.266635]
[1741885600829,0.1239349,80702.0,80701.0,0.17513339]
[1741885601028,0.2646349,80702.0,80701.0,0.15517427]
[1741885601331,0.2646349,80702.0,80701.0,0.27911077]
[1741885601622,0.27716392,80702.0,80701.0,0.2791137]
[1741885601838,0.2646349,80702.0,80701.0,0.29907763]
[1741885602043,0.0619592,80715.0,80714.0,0.0619575]
[1741885602248,0.185878,80715.0,80714.0,0.0744347]
[1741885602543,0.185878,80715.0,80714.0,0.0124772]
[1741885602949,0.323478,80715.0,80714.0,0.0855772]
[1741885603250,0.1858993,80705.0,80704.0,0.1239307]
[1741885603436,0.1858993,80705.0,80704.0,0.13627556]
[1741885603835,0.1858993,80705.0,80704.0,0.08024486]
[1741885604237,0.135,80708.0,80705.0,0.0619644]
[1741885604440,0.135,80708.0,80707.0,0.1239272]
[1741885604441,0.2589272,80708.0,80707.0,0.1239272]
[1741885604744,0.2589272,80708.0,80707.0,0.13628364]
[1741885604949,0.2589272,80708.0,80707.0,0.20488364]
[1741885606149,0.2609272,80708.0,80707.0,0.20488364]
[1741885606538,0.2609272,80708.0,80707.0,0.20499181]
[1741885607534,0.2589272,80708.0,80707.0,0.20499181]
[1741885607742,0.2599272,80708.0,80707.0,0.20499181]
[1741885607939,0.2619272,80708.0,80707.0,0.22487649]
[1741885608344,0.1269257,80708.0,80707.0,0.22487649]
[1741885608845,0.1269257,80708.0,80707.0,0.08106461]
[1741885609048,0.30735905,80708.0,80707.0,0.08106461]
[1741885609295,0.30735905,80708.0,80707.0,0.08206461]
[1741885609296,0.30635905,80708.0,80707.0,0.08206461]
[1741885609441,0.30635905,80708.0,80707.0,0.01346461]
[1741885609840,0.30643659,80708.0,80707.0,0.01346461]
[1741885610046,0.30543659,80708.0,80707.0,0.01346461]
[1741885610735,0.30643659,80708.0,80707.0,0.01341508]
[1741885611134,0.30643659,80708.0,80707.0,0.001]
[1741885611351,0.1239334,80703.0,80702.0,0.00010203]
[1741885611546,0.16326675,80703.0,80702.0,0.00010203]
[1741885612337,0.30356675,80703.0,80702.0,0.00010203]
[1741885612537,0.30456675,80703.0,80702.0,0.00010203]
[1741885613447,0.30464429,80703.0,80702.0,0.00010203]
[1741885613950,0.30456675,80703.0,80702.0,0.00010203]
[1741885615249,0.1239441,80696.0,80695.0,4e-08]
[1741885615550,0.1239441,80696.0,80688.0,0.22263016]
[1741885615551,0.1239549,80689.0,80688.0,0.22263016]
[1741885615751,0.16328825,80689.0,80688.0,0.22263016]
[1741885616155,0.30628825,80689.0,80688.0,0.17921896]
[1741885616452,0.30628825,80689.0,80660.0,0.11179976]
[1741885616453,0.1239856,80669.0,80660.0,0.11179976]
[1741885616643,0.1239856,80669.0,80645.0,0.00108]
[1741885616644,0.1239924,80665.0,80631.0,0.0631015]
[1741885616847,0.0620218,80633.0,80632.0,0.1240369]
[1741885617050,7.754e-05,80633.0,80632.0,0.1240425]
[1741885617244,7.754e-05,80633.0,80632.0,0.2627425]
[1741885617445,0.12411854,80633.0,80632.0,0.2627425]
[1741885617745,0.12411854,80633.0,80632.0,0.1387]
[1741885617944,0.12411854,80633.0,80632.0,0.2627425]
[1741885618141,0.1240456,80630.0,80629.0,0.51463285]
[1741885618543,0.1240456,80630.0,80629.0,0.63867995]
[1741885618743,0.1288212,80632.0,80631.0,0.1240441]
[1741885618744,0.0668,80632.0,80631.0,0.1240441]
[1741885618949,0.00107754,80633.0,80632.0,0.1240425]
[1741885619141,0.00107754,80633.0,80632.0,0.2659425]
[1741885619346,0.1428,80646.0,80632.0,0.1419]
[1741885619551,0.1240317,80639.0,80638.0,0.062016]
[1741885620351,0.1240333,80638.0,80637.0,0.1393]
[1741885620661,0.1240456,80630.0,80629.0,0.63867995]
[1741885621047,0.253767,80632.0,80631.0,0.1240441]
[1741885621739,0.1240456,80630.0,80629.0,0.51463285]
[1741885621943,0.1240456,80630.0,80627.0,0.0712]
[1741885621944,0.29562992,80635.0,80634.0,0.1240394]
[1741885622141,0.17158462,80635.0,80634.0,0.1240394]
[1741885622445,0.1240533,80625.0,80620.0,0.0620301]
[1741885622645,0.1240533,80625.0,80610.0,4.141e-05]
[1741885622857,0.1240665,80617.0,80616.0,0.0620323]
[1741885623057,0.002,80632.0,80624.0,0.1240533]
[1741885623244,0.002,80632.0,80615.0,0.0721]
[1741885623245,0.002,80632.0,80631.0,0.1240441]
[1741885623951,0.001,80632.0,80631.0,0.1240441]
[1741885624151,0.11356502,80635.0,80631.0,0.1419]
[1741885624359,0.23760342,80635.0,80634.0,0.1240394]
[1741885624554,0.23560342,80635.0,80634.0,0.1240394]
[1741885624758,0.23302347,80635.0,80634.0,0.1240394]
[1741885624957,0.23102347,80635.0,80634.0,0.1240394]
[1741885625154,0.10698507,80635.0,80634.0,0.1240394]
[1741885625354,0.1240379,80635.0,80634.0,0.2480788]
[1741885625961,0.1250379,80635.0,80634.0,0.1240394]
[1741885626662,0.001,80635.0,80634.0,0.1240394]
[1741885626857,0.1250379,80635.0,80634.0,0.1240394]
[1741885627452,0.1240379,80635.0,80634.0,0.1250394]
[1741885627752,0.031,80636.0,80634.0,0.1250394]
[1741885627753,0.031,80636.0,80635.0,0.1240379]
[1741885627956,0.00018596,80640.0,80639.0,0.1240317]
[1741885628156,0.00018596,80640.0,80635.0,0.1344]
[1741885628157,0.0217492,80654.0,80635.0,0.1344]
[1741885628365,0.07141981,80654.0,80649.0,0.1240164]
[1741885628559,0.1240124,80652.0,80649.0,0.1240164]
[1741885628764,0.1429,80655.0,80649.0,0.2622164]
[1741885629067,0.12587579,80650.0,80649.0,0.2622164]
[1741885629865,0.00186099,80650.0,80649.0,0.2622164]
[1741885630054,0.00186099,80650.0,80649.0,0.3351164]
[1741885630861,0.14608669,80657.0,80656.0,0.1240056]
[1741885631053,0.27009079,80657.0,80656.0,0.1240056]
[1741885631252,0.1240056,80656.0,80655.0,0.1377]
[1741885631454,0.2624056,80656.0,80655.0,0.1377]
[1741885631653,0.2624056,80656.0,80655.0,0.2617071]
[1741885631851,0.2624056,80656.0,80655.0,0.1377]
[1741885632050,0.1240148,80650.0,80649.0,0.004]
[1741885632258,0.1240148,80650.0,80649.0,0.002]
[1741885632460,0.1240148,80650.0,80649.0,0.1398]
[1741885632963,0.1240148,80650.0,80649.0,0.2638164]
[1741885633163,0.1909148,80650.0,80649.0,0.2638164]
[1741885633465,0.0620049,80654.0,80651.0,0.0620059]
[1741885633653,0.0620049,80654.0,80649.0,0.1398]
[1741885633654,0.1909059,80657.0,80656.0,0.1240056]
[1741885633853,0.1240041,80657.0,80656.0,0.2614056]
[1741885634260,0.07018596,80658.0,80657.0,0.1240041]
[1741885634566,0.12418846,80658.0,80657.0,0.2614041]
[1741885634754,0.00018596,80658.0,80657.0,0.2614041]
[1741885635167,0.12418846,80658.0,80657.0,0.2614041]
[1741885636057,0.12418846,80658.0,80657.0,0.001]
[1741885636758,0.26478846,80658.0,80657.0,0.001]
[1741885636954,0.26478846,80658.0,80657.0,0.1406]
[1741885636955,0.00018596,80658.0,80657.0,0.1406]
[1741885637260,0.12418846,80658.0,80657.0,0.1406]
[1741885637651,0.12618846,80658.0,80657.0,0.1396]
[1741885637954,0.26328846,80658.0,80657.0,0.1396]
[1741885638152,0.26128846,80658.0,80657.0,0.001]
[1741885638361,0.26128846,80658.0,80657.0,0.002]
[1741885638763,0.26328846,80658.0,80657.0,0.001]
[1741885639162,0.26328846,80658.0,80657.0,0.1921041]
[1741885639359,0.26628846,80658.0,80657.0,0.1368]
[1741885639562,0.124023,80646.0,80645.0,0.1860231]
[1741885639759,0.0620075,80650.0,80643.0,0.0620123]
[1741885639760,0.0620095,80648.0,80644.0,0.0681]
[1741885639962,0.1240225,80645.0,80644.0,0.0681]
[1741885640367,0.13655408,80645.0,80644.0,0.0681]
[1741885641971,0.13655408,80645.0,80641.0,0.00018596]
[1741885641972,0.1240271,80642.0,80641.0,0.00018596]
[1741885642269,0.1240641,80620.0,80619.0,0.0728]
[1741885642470,0.1240641,80620.0,80619.0,0.2642625]
[1741885642860,0.2021256,80627.0,80623.0,0.0620279]
[1741885643064,0.1240543,80625.0,80624.0,0.1985517]
[1741885643673,0.1240543,80625.0,80624.0,0.0745]
[1741885643878,0.1220641,80618.0,80617.0,0.12592376]
[1741885644069,0.1220641,80618.0,80617.0,0.12592606]
[1741885644271,0.1220641,80618.0,80617.0,0.00186046]
[1741885644471,0.1210641,80618.0,80617.0,0.00186046]
[1741885644670,0.1190641,80618.0,80617.0,0.00186046]
[1741885644876,0.1190641,80618.0,80617.0,0.12592606]
[1741885645079,0.1190641,80618.0,80617.0,0.12892606]
[1741885645271,0.1906641,80618.0,80617.0,0.07936046]
[1741885645473,0.1906641,80618.0,80617.0,0.08136046]
[1741885645776,0.0620312,80620.0,80617.0,0.08136046]
[1741885645777,0.124063,80620.0,80619.0,0.124058]
[1741885645967,0.124063,80620.0,80619.0,0.1860887]
[1741885647078,0.132029,80622.0,80621.0,0.1240594]
[1741885647275,0.07,80622.0,80621.0,0.1240594]
[1741885647575,0.1940579,80622.0,80621.0,0.1240594]
[1741885647779,0.124061,80620.0,80619.0,0.1260625]
[1741885648566,0.37666857,80622.0,80621.0,0.1240594]
[1741885648773,0.18260837,80622.0,80621.0,0.1260594]
[1741885649379,0.21913004,80627.0,80626.0,0.1240517]
[1741885650175,0.21913004,80627.0,80626.0,0.3463317]
[1741885650369,0.0698,80645.0,80632.0,0.1240425]
[1741885650582,0.1240278,80642.0,80632.0,0.1240425]
[1741885650775,0.0620122,80644.0,80632.0,0.1240425]
[1741885650977,0.0698,80645.0,80632.0,0.1240425]
[1741885651273,0.06385873,80663.0,80644.0,0.1240241]
[1741885651473,0.0693,80657.0,80645.0,0.1945225]
[1741885651984,0.1240196,80647.0,80645.0,0.1945225]
[1741885652276,0.00018596,80654.0,80645.0,0.1945225]
[1741885652774,0.00018596,80654.0,80645.0,0.447239]
[1741885652775,0.0435144,80646.0,80645.0,0.447239]
[1741885652971,0.142,80667.0,80650.0,0.0620072]
[1741885653174,0.62865545,80662.0,80661.0,0.1239979]
[1741885653474,0.44265765,80662.0,80661.0,0.1239979]
[1741885654283,0.00018596,80670.0,80661.0,0.52797278]
[1741885654470,0.18856946,80684.0,80661.0,0.32237488]
[1741885654676,0.0619915,80671.0,80662.0,0.14228]
[1741885654871,0.1453,80670.0,80660.0,0.0745]
[1741885655073,0.061998,80663.0,80660.0,0.1984995]
[1741885655271,0.0689,80662.0,80661.0,0.1239979]
[1741885655571,0.1415,80662.0,80661.0,0.1959979]
[1741885655771,0.2644964,80662.0,80661.0,0.1959979]
[1741885656272,0.124001,80659.0,80658.0,0.14228]
[1741885656479,0.124001,80659.0,80658.0,0.2662825]
[1741885656980,0.0619996,80661.0,80658.0,0.2662825]
[1741885657183,0.124001,80659.0,80658.0,0.14228]
[1741885657677,0.262001,80659.0,80658.0,0.14228]
[1741885657982,0.262001,80659.0,80658.0,0.2662825]
[1741885657983,0.263001,80659.0,80658.0,0.2662825]
[1741885658280,0.263001,80659.0,80655.0,0.248012]
[1741885658281,0.1240056,80656.0,80655.0,0.248012]
[1741885658477,0.139,80659.0,80655.0,0.13589233]
[1741885658670,0.001,80662.0,80661.0,0.1239979]
[1741885658866,0.0701,80668.0,80659.0,0.0619998]
[1741885659074,0.0701,80668.0,80660.0,0.01184915]
[1741885659273,0.1239956,80663.0,80662.0,0.1239951]
[1741885659573,0.0725,80667.0,80666.0,0.1239902]
[1741885659574,0.1964895,80667.0,80666.0,0.1239902]
[1741885659869,0.1964895,80667.0,80653.0,0.12419556]
[1741885659870,0.0725,80667.0,80653.0,0.12419556]
[1741885660074,0.1240071,80655.0,80654.0,0.15410561]
[1741885660273,0.1240071,80655.0,80654.0,0.27811451]
[1741885660673,0.1240071,80655.0,80654.0,0.2662487]
[1741885660876,0.2663071,80655.0,80654.0,0.2662487]
[1741885661082,0.1423,80655.0,80654.0,0.2662487]
[1741885661673,0.1443,80655.0,80654.0,0.2662487]
[1741885662274,0.1463,80655.0,80654.0,0.2662487]
[1741885662675,0.1463,80655.0,80653.0,0.12419466]
[1741885662676,0.1240087,80654.0,80653.0,0.12419466]
[1741885662877,0.1453,80655.0,80654.0,0.1240087]
[1741885663084,0.2693071,80655.0,80654.0,0.1240087]
[1741885663385,0.2693071,80655.0,80653.0,0.00018596]
[1741885663386,0.1240087,80654.0,80653.0,0.00018596]
[1741885663783,0.2677087,80654.0,80653.0,0.12419616]
[1741885664281,0.2677087,80654.0,80653.0,0.00018596]
[1741885664982,0.2697087,80654.0,80653.0,0.00018596]
[1741885665980,0.2727087,80654.0,80653.0,0.00018596]
[1741885666379,0.2727087,80654.0,80653.0,0.12419616]
[1741885666380,0.1487,80654.0,80653.0,0.12419616]
[1741885666582,0.0673,80654.0,80653.0,0.12419616]
[1741885666884,0.0733,80654.0,80653.0,0.12419616]
[1741885667081,0.1973087,80654.0,80653.0,0.12419616]
[1741885667283,0.0733,80654.0,80653.0,0.12419616]
[1741885667791,0.1973087,80654.0,80653.0,0.12419616]
[1741885667985,0.0733,80654.0,80653.0,0.12419616]
[1741885668283,0.1943087,80654.0,80653.0,0.12419616]
[1741885668685,0.1923087,80654.0,80653.0,0.00018596]
[1741885669297,0.1923087,80654.0,80653.0,0.12419616]
[1741885669990,0.1943087,80654.0,80653.0,0.00018596]
[1741885670177,0.0703,80654.0,80653.0,0.12419616]
[1741885670383,0.002,80654.0,80653.0,0.13630426]
[1741885670584,0.002,80654.0,80653.0,0.27854426]
[1741885671189,0.00186023,80673.0,80660.0,0.1239995]
[1741885671385,0.00186023,80673.0,80660.0,0.37195904]
[1741885671586,0.00186023,80673.0,80669.0,0.1239856]
[1741885671882,0.00186023,80673.0,80669.0,0.27818464]
[1741885672898,0.00186023,80673.0,80669.0,0.2904951]
[1741885673197,0.00518596,80670.0,80669.0,0.1482551]
[1741885673397,0.07958596,80670.0,80669.0,0.1482551]
[1741885673586,0.07958596,80670.0,80669.0,0.2904551]
[1741885673898,0.08358596,80670.0,80669.0,0.2904551]
[1741885674394,0.20757006,80670.0,80669.0,0.27814464]
[1741885674601,0.28007006,80670.0,80669.0,0.1422]
[1741885674893,0.0619937,80668.0,80657.0,0.0126003]
[1741885675092,0.0619937,80668.0,80654.0,0.0706]
[1741885675093,0.124001,80659.0,80658.0,0.1422]
[1741885675496,0.124001,80659.0,80658.0,0.2662025]
[1741885675786,0.1964995,80660.0,80659.0,0.0619997]
[1741885675992,0.1964995,80660.0,80659.0,0.1367997]
[1741885676391,0.002,80668.0,80659.0,0.0748]
[1741885676598,0.1239995,80660.0,80659.0,0.198801]
[1741885676801,0.0725,80661.0,80660.0,0.1239995]
[1741885677100,0.1444,80667.0,80660.0,0.145]
[1741885677289,0.0725,80666.0,80665.0,0.1239918]
[1741885677489,0.071,80667.0,80666.0,0.2689902]
[1741885677694,0.071,80667.0,80666.0,0.2809205]
[1741885677902,0.1472,80667.0,80666.0,0.2809205]
[1741885678099,0.2711887,80667.0,80666.0,0.2809205]
[1741885678289,0.2711887,80667.0,80666.0,0.1569303]
[1741885678486,0.1472,80667.0,80666.0,0.1569303]
[1741885678700,0.1522,80667.0,80666.0,0.2809205]
[1741885678896,0.005,80667.0,80666.0,0.2809205]
[1741885679098,0.005,80667.0,80666.0,0.2689902]
[1741885679291,0.005,80667.0,80666.0,0.28090992]
[1741885679491,0.1289887,80667.0,80666.0,0.28090992]
[1741885679687,0.008,80667.0,80666.0,0.28090992]
[1741885680293,0.009,80667.0,80666.0,0.33090992]
[1741885680595,0.009,80667.0,80666.0,0.28090992]
[1741885681088,0.1329887,80667.0,80666.0,0.01191972]
[1741885681502,0.009,80667.0,80666.0,0.13590992]
[1741885681793,0.009,80667.0,80666.0,0.01191972]
[1741885682302,0.009,80667.0,80666.0,0.21080992]
[1741885682499,0.009,80667.0,80666.0,0.28330992]
[1741885682800,0.1329887,80667.0,80666.0,0.28330992]
[1741885683208,0.1329887,80667.0,80666.0,0.01191972]
[1741885684003,0.1528,80667.0,80657.0,0.28956]
[1741885684203,0.1240025,80658.0,80657.0,0.5375642]
[1741885684508,0.0620004,80660.0,80657.0,0.30152848]
[1741885684702,0.267801,80659.0,80658.0,0.13597098]
[1741885684897,0.267801,80659.0,80658.0,0.15386848]
[1741885685706,0.267801,80659.0,80658.0,0.1419]
[1741885686202,0.1240087,80654.0,80653.0,0.00018596]
[1741885686592,0.16340551,80654.0,80653.0,0.00018596]
[1741885686797,0.16340551,80654.0,80653.0,0.01215207]
[1741885686998,0.16340551,80654.0,80653.0,0.00018596]
[1741885687391,0.1240317,80640.0,80638.0,0.01289112]
[1741885687596,0.1240317,80640.0,80639.0,0.28719551]
[1741885687790,0.0620118,80645.0,80639.0,0.1512]
[1741885687997,0.0746,80641.0,80640.0,0.1860453]
[1741885688296,0.1931112,80653.0,80652.0,0.1240118]
[1741885688502,0.10849046,80653.0,80652.0,0.1240118]
[1741885688703,0.03939046,80653.0,80652.0,0.1240118]
[1741885688905,0.001,80654.0,80653.0,0.1240102]
[1741885689306,0.1240073,80656.0,80655.0,0.1240064]
[1741885689505,0.1240087,80654.0,80653.0,0.0711]
[1741885690602,0.1989087,80654.0,80653.0,0.0711]
[1741885690911,0.1988963,80654.0,80653.0,0.0711]
[1741885691109,0.0759,80654.0,80653.0,0.0711]
[1741885691306,0.1239994,80652.0,80651.0,0.0753]
[1741885691895,0.1388988,80654.0,80651.0,0.0753]
[1741885692107,0.1388988,80654.0,80652.0,0.1984988]
[1741885692108,0.0769,80654.0,80652.0,0.1984988]
[1741885692308,0.0769,80654.0,80653.0,0.1239978]
[1741885692608,0.1249963,80654.0,80653.0,0.0702]
[1741885692907,0.1240101,80645.0,80636.0,0.1240228]
[1741885693204,0.1240101,80645.0,80639.0,0.0745]
[1741885693417,0.17561069,80645.0,80632.0,0.15444538]
[1741885693601,0.17561069,80645.0,80634.0,0.1240266]
[1741885693800,0.17561069,80645.0,80635.0,0.147]
[1741885694009,0.17561069,80645.0,80635.0,0.2710251]
[1741885694309,0.17561069,80645.0,80635.0,0.147]
[1741885694712,0.1240193,80639.0,80625.0,0.43851558]
[1741885694908,0.163362,80639.0,80627.0,0.2672369]
[1741885695111,0.163362,80639.0,80630.0,0.124033]
[1741885695404,0.163362,80639.0,80627.0,0.2672369]
[1741885695815,0.163362,80639.0,80630.0,0.00018596]
[1741885695999,0.0393427,80639.0,80630.0,0.00018596]
[1741885696208,0.1240317,80631.0,80630.0,0.00018596]
[1741885696399,0.1633744,80631.0,80630.0,6e-08]
[1741885697003,0.23947706,80631.0,80630.0,6e-08]
[1741885697203,0.2393744,80631.0,80630.0,6e-08]
[1741885697405,0.12413089,80631.0,80630.0,0.00200006]
[1741885697704,0.20013089,80631.0,80630.0,0.00200006]
[1741885698411,0.2000317,80631.0,80630.0,6e-08]
[1741885698619,0.23929158,80631.0,80630.0,6e-08]
[1741885698911,0.11525988,80631.0,80612.0,0.0712]
[1741885699114,0.1240593,80613.0,80612.0,0.0712]
[1741885699305,0.1240624,80611.0,80607.0,0.01820412]
[1741885699502,0.1240624,80611.0,80608.0,0.2703668]
[1741885699710,0.1240624,80611.0,80608.0,0.1463]
[1741885700108,0.0001198,80613.0,80612.0,0.1240609]
[1741885700514,0.0001198,80613.0,80612.0,0.2713609]
[1741885700911,0.0001198,80613.0,80612.0,0.2723609]
[1741885701108,0.1241791,80613.0,80612.0,0.2723609]
[1741885701312,0.1241791,80613.0,80612.0,0.1483]
[1741885701709,0.1241791,80613.0,80612.0,0.2723609]
[1741885702110,0.1241791,80613.0,80612.0,0.1473]
[1741885702311,0.1241791,80613.0,80612.0,0.001]
[1741885702618,0.1240624,80611.0,80610.0,0.00104141]
[1741885702816,0.1230624,80611.0,80610.0,4.141e-05]
[1741885703013,0.072,80612.0,80610.0,0.1361407]
[1741885703219,0.1960609,80612.0,80611.0,0.1435]
[1741885703718,0.1240624,80611.0,80610.0,4.141e-05]
[1741885703916,0.1960624,80611.0,80610.0,0.00104141]
[1741885704218,0.1960624,80611.0,80610.0,0.00204141]
[1741885704720,0.3460624,80611.0,80607.0,0.01820412]
[1741885704906,0.0620338,80608.0,80584.0,0.0620513]
[1741885705106,0.0620338,80608.0,80570.0,0.29635558]